lending/lending_fUSD_20240401
["ID","MTS","AMOUNT","RATE_DAILY","PERIOD"]
[321176578,1711941046345,-500.0,0.00057999,120]
[321176579,1711941046354,-516.9827815,0.00057999,120]
[321176580,1711941046363,-533.00556055,0.00057999,120]
[321176581,1711941046373,-524.24296704,0.00057999,120]
[321176582,1711941046382,-533.88899907,0.00057999,120]
[321176583,1711941046391,-524.37644777,0.00057999,120]
[321176584,1711941046401,-524.01166825,0.00057999,120]
[321176585,1711941046411,-531.32308034,0.00057999,120]
[321176586,1711941046420,-531.38605348,0.00057999,120]
[321176587,1711941046429,-500.0,0.00057999,120]
[321176588,1711941046439,-155.388236,0.00057999,120]
[321176589,1711941046448,-566.64210886,0.00057999,120]
[321176590,1711941046457,-536.0,0.00057999,120]
[321176591,1711941046466,-151.0,0.00057999,120]
[321176592,1711941046475,-151.0,0.00057999,120]
[321176593,1711941046484,-500.0,0.00057999,120]
[321176594,1711941046493,-500.0,0.00057999,120]
[321176595,1711941046503,-528.50568367,0.00057999,120]
[321176596,1711941046512,-471.35997103,0.00057999,120]
[321176597,1711941046521,-532.06948729,0.00057999,120]
[321176598,1711941046531,-506.86396283,0.00057999,120]
[321176599,1711941046540,-544.26752035,0.00057999,120]
[321176600,1711941046549,-529.81083551,0.00057999,120]
[321176601,1711941046558,-537.49434717,0.00057999,120]
[321176602,1711941046567,-247.96940406,0.00057999,120]
[321176603,1711941046579,-313.49819348,0.00057999,120]
[321176604,1711941046588,-529.9706455,0.00057999,120]
[321176605,1711941046597,-548.03037055,0.00057999,120]
[321176606,1711941046606,-273.31079047,0.00057999,120]
[321176607,1711941046618,-228.76411963,0.00057999,120]
[321176608,1711941046627,-543.1173664,0.00057999,120]
[321176609,1711941046636,-1008.54853735,0.00057999,120]
[321176610,1711941046645,-585.34531308,0.00057999,120]
[321176611,1711941046654,-544.20126653,0.00057999,120]
[321176612,1711941046663,-332.29475252,0.00057999,120]
[321176613,1711941046672,-524.7010528,0.00057999,120]
[321176614,1711941046681,-152.188359,0.00057999,120]
[321176615,1711941046690,-502.16611719,0.00057999,120]
[321176616,1711941046699,-531.85656523,0.00057999,120]
[321176617,1711941046709,-527.15977523,0.00057999,120]
[321176618,1711941046717,-78.04933875,0.00057999,120]
[321176619,1711941046733,-377.66788685,0.00057999,120]
[321176620,1711941046742,-586.28463665,0.00057999,120]
[321176621,1711941046751,-534.67554941,0.00057999,120]
[321176622,1711941046760,-353.00435628,0.00057999,120]
[321176623,1711941046772,-569.91739746,0.00057999,120]
[321176624,1711941046782,-515.76664359,0.00057999,120]
[321176625,1711941046791,-547.82345504,0.00057999,120]
[321176626,1711941046800,-535.67498669,0.00057999,120]
[321176627,1711941046809,-541.38725536,0.00057999,120]
[321176628,1711941046819,-580.37182675,0.00057999,120]
[321176629,1711941046829,-535.6915091,0.00057999,120]
[321176630,1711941046839,-506.82561376,0.00057999,120]
[321176631,1711941046849,-519.50902555,0.00057999,120]
[321176632,1711941046858,-246.860085,0.00057999,120]
[321176633,1711941046867,-500.0,0.00057999,120]
[321176634,1711941046876,-543.03989602,0.00057999,120]
[321176635,1711941046886,-987.72608459,0.00057999,120]
[321176636,1711941046895,-500.0,0.00057999,120]
[321176637,1711941046904,-1316.1,0.00057999,120]
[321176638,1711941046912,-500.0,0.00057999,120]
[321176639,1711941046921,-562.03925061,0.00057999,120]
[321176640,1711941046930,-584.22624849,0.00057999,120]
[321176641,1711941046939,-521.55786888,0.00057999,120]
[321176642,1711941046948,-500.0,0.00057999,120]
[321176643,1711941046957,-503.01426165,0.00057999,120]
[321176644,1711941046966,-506.85843125,0.00057999,120]
[321176645,1711941046975,-500.0,0.00057999,120]
[321176646,1711941046985,-520.64752012,0.00057999,120]
[321176647,1711941046995,-500.0,0.00057999,120]
[321176648,1711941047003,-500.0,0.00057999,120]
[321176649,1711941047013,-540.16956405,0.00057999,120]
[321176650,1711941047022,-311.86426635,0.00057999,120]
[321176651,1711941047033,-535.47230448,0.00057999,120]
[321176652,1711941047041,-590.57613811,0.00057999,120]
[321176653,1711941047050,-500.0,0.00057999,120]
[321176654,1711941047059,-409.54575051,0.00057999,120]
[321176655,1711941047068,-500.0,0.00057999,120]
[321176656,1711941047078,-526.16901173,0.00057999,120]
[321176657,1711941047086,-532.29023659,0.00057999,120]
[321176658,1711941047095,-500.0,0.00057999,120]
[321176659,1711941047104,-500.0,0.00057999,120]
[321176660,1711941047113,-539.63258739,0.00057999,120]
[321176661,1711941047122,-528.81801047,0.00057999,120]
[321176662,1711941047131,-547.02018376,0.00057999,120]
[321176663,1711941047140,-500.0,0.00057999,120]
[321176664,1711941047149,-531.07065681,0.00057999,120]
[321176665,1711941047158,-488.73086214,0.00057999,120]
[321176666,1711941054524,410.06287528,0.0002812,2]
[321176678,1711942232076,-243.9758189,0.00037807,4]
[321176679,1711942232085,-156.28,0.00037808,2]
[321176680,1711942232095,-155.79,0.00037808,2]
[321176681,1711942232104,-65.79844176,0.000426,39]
[321176682,1711942232186,-1935.23226309,0.000426,39]
[321176683,1711942232245,-643.62591315,0.000426,39]
[321176684,1711942232255,-152.43,0.00045,5]
[321176685,1711942232263,-152.43,0.00045,5]
[321176686,1711942232273,-152.43,0.00045,5]
[321176687,1711942232282,-156.28,0.00048828,2]
[321176688,1711942232291,-155.79,0.00048828,2]
[321176689,1711942232302,-152.43,0.000501,6]
[321176690,1711942232310,-152.43,0.000501,6]
[321176691,1711942232320,-152.43,0.000501,6]
[321176692,1711942232329,-391.19,0.0005349,2]
[321176693,1711942232339,-653.05470573,0.00055196,2]
[321176694,1711942232348,-150.0,0.00055196,9]
[321176695,1711942232357,-100.90557478,0.00055196,60]
[321176698,1711942238034,-217.09442522,0.00055196,60]
[321176699,1711942238043,-475.75057478,0.00055197,2]
[321176700,1711942238056,-2811.52942522,0.00055197,2]
[321176701,1711942238065,-9056.2355939,0.00055197,2]
[321176702,1711942238096,-278.4144061,0.00055197,2]
[321176703,1711942238105,-1846.61815257,0.00055198,2]
[321176704,1711942238117,-1036.24451051,0.00055198,2]
[321176705,1711942238150,-2025.65425398,0.00055198,2]
[321176706,1711942238162,-1245.63308294,0.00055198,2]
[321176707,1711942238171,-499.99,0.00055198,2]
[321176708,1711942238181,-152.43,0.000552,8]
[321176709,1711942238191,-152.43,0.000552,8]
[321176710,1711942238201,-152.43,0.000552,8]
[321176711,1711942238210,-1000.0,0.00055201,120]
[321176712,1711942238219,-527.45,0.0005524,30]
[321176713,1711942238228,-179.0,0.00055252,2]
[321176714,1711942238238,-159.88,0.00055261,120]
[321176715,1711942238247,-512.16,0.0005527,30]
[321176716,1711942238260,-150.0,0.00055292,2]
[321176717,1711942238269,-453.18,0.00055298,2]
[321176718,1711942238278,-174.56,0.00055374,120]
[321176719,1711942238287,-250.0,0.00055376,120]
[321176720,1711942238296,-485.94,0.00055408,2]
[321176721,1711942238306,-193.31,0.00055416,2]
[321176722,1711942238316,-250.0,0.00055419,120]
[321176723,1711942238325,-382.61,0.00055553,30]
[321176724,1711942238335,-10006.29,0.00055593,2]
[321176725,1711942238344,-751.65,0.00055677,120]
[321176726,1711942238354,-391.19,0.00055754,2]
[321176727,1711942238363,-2664.48950457,0.0005599,2]
[321176728,1711942238372,-34130.60467184,0.00056,120]
[321176729,1711942238381,-5511.2192448,0.00056513,4]
[321176730,1711942238390,-4144.34955295,0.0005663,7]
[321176731,1711942238406,-1655.65044705,0.0005663,7]
[321176732,1711942238415,-591.68872386,0.00056639,7]
[321176733,1711942238438,-257.46,0.00056639,7]
[321176770,1711942243167,-4950.85127614,0.00056639,7]
[321176771,1711942243177,-5800.0,0.00056648,7]
[321176773,1711942243186,-5800.0,0.00056656,7]
[321176775,1711942243196,-3100.48840906,0.00056665,7]
[321176777,1711942243348,-2699.51159094,0.00056665,7]
[321176778,1711942243358,-3011.16107029,0.00056673,7]
[321176779,1711942243370,-2788.83892971,0.00056673,7]
[321176780,1711942243379,-924.22881748,0.00056681,7]
[321176781,1711942243518,-279.816,0.00056681,7]
[321176796,1711942246577,-867.76283108,0.00056681,7]
[321176797,1711942246638,-3728.19235144,0.00056681,7]
[321176798,1711942246647,-5800.0,0.0005669,7]
[321176799,1711942246656,-28884.90453626,0.00056884,120]
[321176800,1711942246665,-9102.803,0.0005751,2]
[321176801,1711942246673,-833.8294,0.0005751,2]
[321176802,1711942246682,-300.1014,0.00057689,2]
[321176803,1711942246692,-983.8074,0.00057699,2]
[321176804,1711942246702,-7131.45440746,0.00057699,2]
[321176805,1711942246711,-173.90200429,0.00057783,14]
[321176806,1711942246720,-17191.5505,0.00057799,2]
[321176807,1711942246729,-181.63,0.00057873,30]
[321176808,1711942246737,-681.31,0.00057882,120]
[321176809,1711942246747,-1277.35,0.00057882,120]
[321176810,1711942246756,-711.05,0.00057882,120]
[321176811,1711942246765,-500.0,0.00057882,120]
[321176812,1711942246775,-610.77,0.00057882,120]
[321176813,1711942246784,-500.0,0.00057882,120]
[321176814,1711942246794,-3153.06,0.00057882,120]
[321176815,1711942246803,-656.49,0.00057882,120]
[321176816,1711942246813,-500.0,0.00057882,120]
[321176817,1711942246822,-817.51,0.00057882,120]
[321176818,1711942246833,-500.0,0.00057882,120]
[321176819,1711942246843,-2291.83,0.00057882,120]
[321176820,1711942246852,-500.0,0.00057882,120]
[321176821,1711942246861,-500.0,0.00057882,120]
[321176822,1711942246872,-500.0,0.00057882,120]
[321176823,1711942246881,-1123.79,0.00057882,120]
[321176824,1711942246891,-1331.2,0.00057882,120]
[321176825,1711942246900,-778.05,0.00057882,21]
[321176826,1711942246909,-500.0,0.00057882,120]
[321176827,1711942246918,-793.64,0.00057882,120]
[321176828,1711942246927,-500.0,0.00057882,120]
[321176829,1711942246937,-500.0,0.00057882,120]
[321176830,1711942246946,-500.0,0.00057882,120]
[321176831,1711942246955,-2188.15,0.00057882,120]
[321176832,1711942246964,-500.0,0.00057882,120]
[321176833,1711942246972,-522.76,0.00057882,120]
[321176834,1711942246981,-500.0,0.00057882,120]
[321176835,1711942246991,-500.0,0.00057882,120]
[321176836,1711942247000,-988.28,0.00057882,120]
[321176837,1711942247009,-500.0,0.00057882,120]
[321176838,1711942247018,-596.55,0.00057882,120]
[321176839,1711942247027,-2157.38,0.00057882,120]
[321176840,1711942247036,-500.0,0.00057882,120]
[321176841,1711942247045,-1513.88,0.00057882,120]
[321176842,1711942247054,-500.0,0.00057882,120]
[321176843,1711942247066,-557.73052583,0.00057882,120]
[321176844,1711942247074,-500.0,0.00057882,120]
[321176845,1711942247083,-500.0,0.00057882,120]
[321176846,1711942247093,-500.0,0.00057882,120]
[321176847,1711942247101,-500.0,0.00057882,120]
[321176848,1711942247110,-500.0,0.00057882,120]
[321176849,1711942247119,-500.0,0.00057882,120]
[321176850,1711942247128,-500.0,0.00057882,120]
[321176851,1711942247137,-500.0,0.00057882,120]
[321176852,1711942247147,-638.93907743,0.00057882,120]
[321176853,1711942247156,-1191.12,0.00057882,120]
[321176854,1711942247166,-500.0,0.00057882,120]
[321176855,1711942247174,-500.0,0.00057882,120]
[321176856,1711942247183,-529.38,0.00057882,120]
[321176857,1711942247192,-500.0,0.00057882,120]
[321176858,1711942247201,-155.52416695,0.00057882,120]
[321176859,1711942247210,-500.0,0.00057882,120]
[321176860,1711942247219,-568.96,0.00057882,120]
[321176861,1711942247228,-676.35,0.00057882,120]
[321176862,1711942247237,-545.05290581,0.00057882,120]
[321176863,1711942247246,-500.0,0.00057882,120]
[321176864,1711942247256,-500.0,0.00057882,120]
[321176865,1711942247266,-236.77,0.00057883,120]
[321176866,1711942247276,-328.69679325,0.00057883,120]
[321176867,1711942247286,-500.0,0.00057883,120]
[321176868,1711942247296,-500.0,0.00057883,120]
[321176869,1711942247305,-500.0,0.00057883,120]
[321176870,1711942247316,-509.61973292,0.00057883,120]
[321176871,1711942247325,-500.0,0.00057883,120]
[321176872,1711942247335,-500.0,0.00057883,120]
[321176873,1711942247344,-500.0,0.00057883,120]
[321176874,1711942247353,-228.92736209,0.00057883,120]
[321176875,1711942247362,-500.0,0.00057883,120]
[321176876,1711942247371,-500.0,0.00057883,120]
[321176877,1711942247380,-500.0,0.00057883,30]
[321176878,1711942247389,-518.1845949,0.00057883,120]
[321176879,1711942247398,-649.72128459,0.00057883,120]
[321176880,1711942247407,-500.0,0.00057883,120]
[321176881,1711942247416,-260.69764867,0.00057883,120]
[321176882,1711942247425,-500.0,0.00057883,120]
[321176883,1711942247434,-603.27145529,0.00057883,120]
[321176884,1711942247443,-500.0,0.00057883,120]
[321176885,1711942247452,-330.56784556,0.00057883,120]
[321176886,1711942247602,-533.94407868,0.00057883,120]
[321176887,1711942247621,-500.0,0.00057883,120]
[321176888,1711942247630,-520.58298575,0.00057883,120]
[321176889,1711942247640,-568.73151755,0.00057883,120]
[321176890,1711942247650,-500.0,0.00057883,120]
[321176891,1711942247659,-504.71203306,0.00057883,2]
[321176892,1711942247669,-195.58300757,0.00057883,120]
[321176893,1711942247678,-552.27525651,0.00057883,120]
[321176894,1711942247687,-542.38105745,0.00057883,120]
[321176895,1711942247698,-576.45559532,0.00057883,120]
[321176896,1711942247708,-500.0,0.00057883,120]
[321176897,1711942247717,-564.07116756,0.00057883,120]
[321176898,1711942247726,-591.08023379,0.00057883,120]
[321176899,1711942247736,-524.98941068,0.00057883,120]
[321176900,1711942247745,-287.19380989,0.00057883,120]
[321176901,1711942247768,-278.31593574,0.00057883,120]
[321176902,1711942247784,-40.91716846,0.00057883,120]
[321176903,1711942247793,-548.49607999,0.00057883,120]
[321176904,1711942247802,-577.93946192,0.00057883,120]
[321176905,1711942247812,-285.04010722,0.00057883,120]
[321176906,1711942247822,-541.77115626,0.00057883,120]
[321176907,1711942247831,-580.321347,0.00057883,120]
[321176908,1711942247842,-522.54565378,0.00057883,120]
[321176909,1711942247851,-529.73609222,0.00057883,120]
[321176910,1711942247860,-534.39361869,0.00057883,120]
[321176911,1711942247870,-529.34091399,0.00057883,120]
[321176912,1711942247879,-524.57686613,0.00057883,120]
[321176913,1711942247888,-302.56913084,0.00057883,120]
[321176917,1711942738023,-1188.59478719,0.00037295,4]
[321176918,1711942738043,-203.31318241,0.00037296,4]
[321176919,1711942738063,-3265.9640985,0.00037298,2]
[321176920,1711942738081,-76714.1043527,0.00037298,2]
[321176921,1711942738099,-376141.345884,0.00037298,2]
[321176922,1711942738120,-173.90200429,0.000373,8]
[321176923,1711942738139,-8307.68973093,0.000373,2]
[321176924,1711942738159,-4933.93069206,0.0003739,2]
[321176925,1711942738177,-153.0,0.000374,2]
[321176926,1711942815714,1010.0,0.00037,2]
[321176929,1711943260612,-327.92370361,0.00037705,2]
[321176930,1711943260631,-832.01635104,0.00037706,4]
[321176931,1711943260651,-203.31318241,0.00037707,4]
[321176932,1711943260672,-158.86839836,0.00037708,2]
[321176933,1711943260693,-160.64855982,0.00037708,2]
[321176934,1711943288027,-156.04,0.00037808,2]
[321176935,1711943288046,-157.02,0.00037808,2]
[321176936,1711943340834,163.7745,0.00042853,30]
[321176943,1711943432290,-252.58306351,0.00039841,4]
[321176944,1711943432300,-500.0,0.00040444,2]
[321176945,1711943432309,-499.99,0.00042841,2]
[321176946,1711943432318,-2498.60955867,0.00044898,2]
[321176947,1711943432330,-511.04564133,0.00044898,2]
[321176948,1711943432340,-2000.0,0.00044998,2]
[321176949,1711943432349,-162.65054593,0.00044999,4]
[321176950,1711943432358,-152.5,0.00045,5]
[321176951,1711943432367,-152.5,0.00045,5]
[321176952,1711943432376,-2709.52,0.00045,2]
[321176953,1711943432386,-950.87582976,0.00050099,4]
[321176954,1711943432395,-152.5,0.000501,6]
[321176955,1711943432405,-152.5,0.000501,6]
[321176956,1711943432414,-403.46,0.00051198,2]
[321176957,1711943432424,-2967.74,0.00051198,2]
[321176958,1711943432433,-10444.86956873,0.00052,120]
[321176959,1711943432442,-9999.99,0.00052,2]
[321176960,1711943432451,-3361.90901661,0.00052,2]
[321177013,1711943438207,-394.04098339,0.00052,2]
[321177014,1711943438218,-200.0,0.00052499,2]
[321177015,1711943438227,-159.88,0.00052564,120]
[321177016,1711943438236,-200.0,0.0005258,30]
[321177017,1711943438246,-168.07,0.0005267,2]
[321177018,1711943438255,-500.0,0.0005269,2]
[321177019,1711943438264,-179.0,0.00052747,2]
[321177020,1711943438273,-174.56,0.00052753,120]
[321177021,1711943438282,-150.0,0.00052782,2]
[321177022,1711943438291,-500.0,0.00052955,2]
[321177023,1711943438301,-23880.0,0.00052976,2]
[321177024,1711943438310,-500.0,0.00052999,2]
[321177025,1711943438319,-1722.5,0.00053009,2]
[321177026,1711943438328,-250.0,0.00053033,120]
[321177027,1711943438337,-157.98,0.00053059,2]
[321177028,1711943438346,-1000.0,0.00053066,120]
[321177029,1711943438355,-509.32,0.00053134,2]
[321177030,1711943438364,-2826.99,0.00053152,30]
[321177031,1711943438373,-403.46,0.00053462,2]
[321177032,1711943438383,-157.98,0.0005352,2]
[321177033,1711943438393,-250.0,0.00053657,120]
[321177034,1711943438402,-157.98,0.00053981,2]
[321177035,1711943438412,-2070.0,0.00053985,117]
[321177036,1711943438421,-1025.419447,0.00054,120]
[321177037,1711943438431,-157.98,0.00054441,2]
[321177038,1711943438440,-500.0,0.00054794,120]
[321177039,1711943438449,-196.79,0.00054794,120]
[321177040,1711943438459,-500.0,0.00054794,30]
[321177041,1711943438468,-343.63285658,0.00054794,120]
[321177042,1711943438477,-500.0,0.00054794,120]
[321177043,1711943438487,-500.0,0.00054794,120]
[321177044,1711943438495,-500.0,0.00054794,120]
[321177045,1711943438505,-500.0,0.00054794,120]
[321177046,1711943438514,-500.0,0.00054794,120]
[321177047,1711943438523,-500.0,0.00054794,120]
[321177048,1711943438532,-500.0,0.00054794,120]
[321177049,1711943438541,-500.0,0.00054794,120]
[321177050,1711943438550,-500.0,0.00054794,120]
[321177051,1711943438559,-364.02311826,0.00054794,120]
[321177052,1711943438571,-135.97688174,0.00054794,120]
[321177053,1711943438580,-500.0,0.00054794,120]
[321177054,1711943438590,-651.2,0.00054794,120]
[321177055,1711943438599,-535.85403746,0.00054794,7]
[321177056,1711943438607,-500.0,0.00054794,120]
[321177057,1711943438617,-1484.10361472,0.00054794,120]
[321177058,1711943438632,-562.65161485,0.00054794,120]
[321177059,1711943438655,-1159.72477043,0.00054794,120]
[321177060,1711943438664,-545.64963532,0.00054794,120]
[321177061,1711943438674,-845.87,0.00054794,120]
[321177062,1711943438683,-500.0,0.00054794,120]
[321177063,1711943438692,-500.0,0.00054794,120]
[321177064,1711943438701,-2942.43,0.00054794,120]
[321177065,1711943438710,-500.0,0.00054794,120]
[321177066,1711943438720,-500.0,0.00054794,120]
[321177067,1711943438729,-887.93,0.00054794,120]
[321177068,1711943438738,-683.46,0.00054794,120]
[321177069,1711943438746,-500.0,0.00054794,120]
[321177070,1711943438755,-500.0,0.00054794,120]
[321177071,1711943438765,-500.0,0.00054794,120]
[321177073,1711943438774,-157.98,0.00054902,2]
[321177074,1711943438783,-500.0,0.00055068,120]
[321177076,1711943438792,-500.0,0.00055068,30]
[321177078,1711943438801,-500.0,0.00055068,120]
[321177080,1711943438810,-500.0,0.00055068,120]
[321177082,1711943438819,-500.0,0.00055068,120]
[321177084,1711943438828,-500.0,0.00055068,120]
[321177085,1711943438837,-581.97106087,0.00055068,120]
[321177086,1711943438847,-532.53541696,0.00055068,120]
[321177087,1711943438857,-165.45594622,0.00055068,120]
[321177088,1711943438866,-500.0,0.00055068,120]
[321177089,1711943438874,-179.70807052,0.00055068,120]
[321177090,1711943438884,-651.2,0.00055068,120]
[321177091,1711943438893,-500.0,0.00055068,120]
[321177092,1711943438903,-3206.48,0.00055068,120]
[321177093,1711943438911,-845.87,0.00055068,120]
[321177094,1711943438921,-500.0,0.00055068,120]
[321177095,1711943438930,-500.0,0.00055068,120]
[321177096,1711943438939,-2942.43,0.00055068,120]
[321177097,1711943438949,-406.97755596,0.00055068,120]
[321177124,1711943440256,-93.02244404,0.00055068,120]
[321177126,1711943440265,-500.0,0.00055068,120]
[321177128,1711943440274,-355.77845596,0.00055068,120]
[321177133,1711943440316,-532.15154404,0.00055068,120]
[321177135,1711943440326,-668.14843139,0.00055068,120]
[321177181,1711943443359,-15.31156861,0.00055068,120]
[321177182,1711943443368,-500.0,0.00055068,120]
[321177183,1711943443378,-500.0,0.00055068,120]
[321177184,1711943443387,-144.61611275,0.00055068,120]
[321177185,1711943443414,-355.38388725,0.00055068,120]
[321177186,1711943443424,-152.5,0.000552,8]
[321177187,1711943443433,-152.5,0.000552,8]
[321177188,1711943443442,-255.7719572,0.00055342,30]
[321177189,1711943443453,-500.0,0.00055342,120]
[321177190,1711943443462,-174.93617553,0.00055342,120]
[321177191,1711943443471,-500.0,0.00055342,120]
[321177192,1711943443480,-500.0,0.00055342,120]
[321177193,1711943443490,-500.0,0.00055342,120]
[321177194,1711943443499,-651.2,0.00055342,120]
[321177195,1711943443509,-500.0,0.00055342,120]
[321177196,1711943443518,-3206.48,0.00055342,120]
[321177197,1711943443527,-845.87,0.00055342,120]
[321177198,1711943443536,-520.01194351,0.00055342,120]
[321177199,1711943443546,-500.0,0.00055342,120]
[321177200,1711943443557,-2942.43,0.00055342,120]
[321177201,1711943443566,-500.0,0.00055342,120]
[321177202,1711943443575,-887.93,0.00055342,120]
[321177203,1711943443585,-513.53043651,0.00055342,120]
[321177204,1711943443603,-169.92956349,0.00055342,120]
[321177205,1711943443613,-500.0,0.00055342,120]
[321177206,1711943443622,-381.31120614,0.00055342,120]
[321177207,1711943443646,-118.68879386,0.00055342,120]
[321177208,1711943443659,-157.98,0.00055363,2]
[321177209,1711943443671,-153.4704805,0.0005541,2]
[321177210,1711943443708,-14.5995195,0.0005541,2]
[321177211,1711943443720,-308.0754805,0.00055516,2]
[321177229,1711943446332,-7168.84527731,0.00055516,2]
[321177230,1711943446344,-2939.36768865,0.00055516,2]
[321177231,1711943446355,-500.0,0.00055616,120]
[321177232,1711943446366,-500.0,0.00055616,120]
[321177233,1711943446376,-500.0,0.00055616,120]
[321177234,1711943446386,-364.49067198,0.00055616,120]
[321177235,1711943446395,-651.2,0.00055616,120]
[321177236,1711943446406,-157.57895694,0.00055616,120]
[321177237,1711943446418,-3206.48,0.00055616,120]
[321177238,1711943446429,-845.87,0.00055616,120]
[321177239,1711943446440,-500.0,0.00055616,120]
[321177240,1711943446450,-2942.43,0.00055616,120]
[321177241,1711943446461,-503.46019661,0.00055616,120]
[321177242,1711943446472,-887.93,0.00055616,120]
[321177243,1711943446483,-683.46,0.00055616,120]
[321177244,1711943446493,-500.0,0.00055616,120]
[321177245,1711943446504,-500.0,0.00055616,120]
[321177246,1711943446516,-403.46,0.00055726,2]
[321177247,1711943446527,-157.98,0.00055824,2]
[321177248,1711943446538,-365.47643469,0.0005589,120]
[321177249,1711943446548,-500.0,0.0005589,120]
[321177250,1711943446557,-500.0,0.0005589,120]
[321177251,1711943446567,-614.5571027,0.0005589,120]
[321177252,1711943446584,-36.6428973,0.0005589,120]
[321177253,1711943446598,-3206.48,0.0005589,120]
[321177254,1711943446609,-845.87,0.0005589,120]
[321177255,1711943446619,-500.0,0.0005589,120]
[321177256,1711943446630,-2942.43,0.0005589,120]
[321177257,1711943446641,-756.8604027,0.0005589,120]
[321177258,1711943446655,-131.0695973,0.0005589,120]
[321177259,1711943446666,-683.46,0.0005589,120]
[321177260,1711943446676,-500.0,0.0005589,120]
[321177261,1711943446688,-241.37888993,0.0005589,120]
[321177262,1711943446698,-535.13470543,0.00056052,120]
[321177264,1711943675144,34893.84955063,0.00042853,30]
[321177268,1711943915046,-155.0,0.00037792,4]
[321177269,1711943915068,-1639.493871,0.00037793,4]
[321177270,1711943915091,-832.01635104,0.00037794,4]
[321177271,1711943915112,-601.0,0.00037796,2]
[321177272,1711943915135,-156.25,0.00037808,2]
[321177280,1711943946152,-832.01635104,0.00039997,4]
[321177281,1711943946178,-399.52533249,0.00039997,4]
[321177282,1711943946200,-155.0,0.00039997,4]
[321177283,1711943946223,-150.0,0.00039998,5]
[321177284,1711943946244,-150.0,0.00039998,4]
[321177285,1711943946266,-9443.69809443,0.00039999,2]
[321177298,1711944147183,994.11574722,0.00042857,30]
[321177299,1711944147210,1309.31635767,0.00042857,30]
[321177301,1711944351218,-832.01635104,0.00037791,4]
[321177302,1711944351242,-155.0,0.00037791,4]
[321177303,1711944351265,-2000.0,0.00037792,2]
[321177304,1711944351294,-1401.79529549,0.00037793,4]
[321177305,1711944351317,-156.5,0.00037808,2]
[321177306,1711944351339,-254.38,0.00038048,2]
[321177307,1711944351362,-170.37698349,0.000397,2]
[321177308,1711944351385,-6729.22868202,0.00039899,2]
[321177309,1711944351412,-118300.70268796,0.00039999,2]
[321177327,1711944631696,-832.01635104,0.00035993,4]
[321177328,1711944631706,-296.03316854,0.00035993,2]
[321177383,1711944637812,-808.75030777,0.00035993,2]
[321177384,1711944637825,-741.27723955,0.00035993,2]
[321177385,1711944637837,-153.93928414,0.00035993,2]
[321177386,1711944637846,-155.0,0.00035994,4]
[321177387,1711944637856,-111.94955076,0.00035994,4]
[321177388,1711944637867,-298.52743707,0.00035994,4]
[321177389,1711944637878,-362.69102512,0.00035994,4]
[321177548,1711944639469,-284.46639947,0.00035994,4]
[321177674,1711944642182,-344.16088307,0.00035994,4]
[321177677,1711944642192,-649.74725655,0.00035997,4]
[321177679,1711944642202,-190.55779446,0.000376,2]
[321177681,1711944642211,-858.01557521,0.00037701,2]
[321177726,1711944642945,-270.75686148,0.00037701,2]
[321177848,1711944645582,-353.4,0.00037701,2]
[321177850,1711944824606,-155.0,0.00032997,4]
[321177851,1711944824627,-915.34009879,0.00032998,4]
[321177852,1711944824646,-2000.0,0.00032998,2]
[321177853,1711944824666,-155.0,0.00032999,4]
[321177854,1711944824685,-832.01635104,0.00032999,4]
[321177855,1711944824707,-350.0,0.00033,3]